Cogmind - Beta 13 @@@ ROGUE MODE // 2024.06.28 @ 20:45:58 Player: RAT Result: Destroyed by Y-45 Defender with Beam Rifle Performance ------------- Evolutions (1) 500 Regions Visited (2) 400 Robots Destroyed (10) 50 Value Destroyed (327) 327 Prototype IDs (0) 0 Alien Tech Used (0) 0 Bonus (0) 0 TOTAL SCORE: 1277 Bonus ------- None Cogmind --------- Core Integrity 0/400 Matter 300/300 Energy 100/100 System Corruption 0% Temperature Cool (9) Movement Core (400) Ox7 Location -9/Materials Parts ------- > --- POWER (2) -------- (None) > --- PROPULSION (2) --- (None) > --- UTILITY (3) ------ Large Storage Unit Sensor Array Signal Interpreter > --- WEAPON (2) ------- Mace > --- INVENTORY (15) --- Huge Storage Unit Light Assault Rifle Peak State ------------ > --- POWER ------------ Improved Ion Engine Improved Ion Engine > --- PROPULSION ------- Compact Wheel Compact Wheel > --- UTILITY ---------- Large Storage Unit Sensor Array Signal Interpreter > --- WEAPON ----------- EM Shotgun Mace > --- INVENTORY -------- Aluminum Leg Improved Aluminum Leg Improved Aluminum Leg Huge Storage Unit Light Assault Rifle [Rating: 13] Favorites ----------- Power Improved Ion Engine Engine Improved Ion Engine Propulsion Improved Aluminum Leg Leg Improved Aluminum Leg Wheel Compact Wheel Utility Sensor Array Device Sensor Array Storage Large Storage Unit Processor Signal Interpreter Weapon Medium Laser Energy Gun Medium Laser Ballistic Gun Light Assault Rifle Launcher Grenade Launcher Impact Weapon Mace Build | -11 -10 -9 ------- Run | Yrd Mat Mat Slots Evolved 2 | . . 2 Power 1 | . . 1 Propulsion . | . . . Utility 1 | . . 1 Weapon . | . . . Parts Attached 22 | 6 7 9 Power 4 | 1 . 3 Engine 4 | 1 . 3 Core . | . . . Reactor . | . . . Propulsion 6 | 2 2 2 Treads . | . . . Leg 4 | 2 . 2 Wheel 2 | . 2 . Hover . | . . . Flight . | . . . Utility 7 | 1 4 2 Device 1 | . 1 . Storage 5 | 1 3 1 Processor 1 | . . 1 Hackware . | . . . Protection . | . . . Artifact . | . . . Weapon 5 | 2 1 2 Energy Gun 2 | 1 . 1 Energy Cannon . | . . . Ballistic Gun 1 | 1 . . Ballistic Cannon . | . . . Launcher 1 | . 1 . Special Weapon . | . . . Impact Weapon 1 | . . 1 Slashing Weapon . | . . . Piercing Weapon . | . . . Special Melee Weapon . | . . . Unidentified Prototypes . | . . . Parts Lost 7 | . . 7 Power 2 | . . 2 Propulsion 3 | . . 3 Utility . | . . . Weapon 2 | . . 2 Highest Loss Streak 2 | . . 2 To Critical Strikes . | . . . Average Slot Usage (%) 86 | . 96 81 Engine 14 | . 14 15 Leg 14 | . 21 11 Wheel 8 | . 6 8 Device 10 | . 10 11 Storage 12 | . 14 11 Processor 6 | . . 9 Energy Gun 7 | . 14 4 Launcher 5 | . 11 2 Impact Weapon 5 | . . 7 Naked Turns . | . . . Heaviest Build 86 | 11 86 40 Greatest Support 32 | 20 32 32 Greatest Overweight (x) 7 | . 4 7 Average Overweight (x) . | . . . Largest Inventory Capacity 25 | 8 25 15 Average Capacity 11 | 7 9 13 Most Carried 7 | 5 7 7 Average Carried 4 | 3 5 3 Final Capacity 15 | 8 8 15 Final Carried 7 | 3 7 2 Class Distribution -------------------- 100% | Mutant Dominant Class ---------------- Mutant | -10/Materials Mutant | -9/Materials Resources | -11 -10 -9 ----------- Run | Yrd Mat Mat Matter Collected 420 | 222 29 169 Remotely . | . . . Salvage Created 381 | . 57 324 Parts 21 | . 5 16 Haulers Intercepted . | . . . Recyclers Shooed . | . . . Parts Field Recycled . | . . . Retrieved Matter . | . . . Parts Self-Destructed . | . . . Prevented . | . . . Kills | -11 -10 -9 ------- Run | Yrd Mat Mat Combat Hostiles Destroyed 7 | . 1 6 Melee 3 | . . 3 Guns 2 | . . 2 AOE 1 | . 1 . Classes Destroyed 5 | . 2 3 Worker 1 | . . 1 Builder 1 | . . 1 Watcher 1 | . 1 . Grunt 3 | . 1 2 Sentry 4 | . . 4 Best Kill Streak 2 | . 1 2 Combat Bots Only 2 | . 1 2 Max Kills in Single Turn 1 | . 1 1 Gunslinging . | . . . Exploded 1 | . 1 . Melee 1 | . . 1 Uniques/NPCs Destroyed . | . . . Combat | -11 -10 -9 -------- Run | Yrd Mat Mat Hostile Shots Fired 145 | . 17 128 Missed 44 | . 2 42 Damage Taken 1286 | . 193 1093 Core 517 | . 103 414 Absorbed by Shields . | . . . Core Remaining (%) 79 | 100 58 . Volleys Fired 18 | . 6 12 Largest 1 | . 1 1 Hottest 50 | . 50 45 Shots Fired 18 | . 6 12 Gun 16 | . 4 12 Cannon . | . . . Launcher 2 | . 2 . Special . | . . . Kinetic . | . . . Thermal 4 | . 4 . Explosive 2 | . 2 . Electromagnetic 12 | . . 12 Robot Hit Streak 12 | . 2 12 Robot Miss Streak 3 | . 2 3 Penetration Max . | . . . Secondary Targets . | . . . Shots Hit Robots 28 | . 3 25 Core Hits 14 | . 4 10 Critical Kills . | . . . Critical Parts Destroyed 4 | . . 4 Critical Strikes 4 | . . 4 Smash 4 | . . 4 Melee Attacks 17 | . . 17 Impact 17 | . . 17 Slashing . | . . . Piercing . | . . . Sneak Attacks 2 | . . 2 Combat Hostiles . | . . . Follow-up Attacks . | . . . Damage Inflicted 776 | . 209 567 Guns 138 | . 12 126 Cannons . | . . . Explosions 197 | . 197 . Melee 441 | . . 441 Ramming . | . . . Kinetic . | . . . Thermal 12 | . 12 . Explosive 197 | . 197 . Electromagnetic 126 | . . 126 Impact 441 | . . 441 Slashing . | . . . Piercing . | . . . Highest Corruption . | . . . Average Corruption . | . . . Corruption Purged . | . . . Corruption Blocked . | . . . Overload Shots . | . . . Overflow Damage 166 | . . 166 Projectiles . | . . . Explosions . | . . . Melee 166 | . . 166 Knockbacks 1 | . . 1 Impact 1 | . . 1 Kinetic . | . . . Secondary . | . . . Self-Inflicted Damage 23 | . 23 . Shots 1 | . 1 . Rammed . | . . . Targets Rammed . | . . . Kicked . | . . . Crushed . | . . . Highest Temperature 211 | . 30 211 Average Temperature 88 | . 13 108 Received Heat Transfer 435 | . 96 339 Siege Activations . | . . . Robots Corrupted . | . . . Combat Hostiles . | . . . Parts Fried 4 | . . 4 Impact Corruptions 8 | . . 8 Robots Melted . | . . . Combat Hostiles . | . . . Parts Melted . | . . . Heat Transferred 37 | . 37 . Parts Sabotaged . | . . . Parts Stolen . | . . . Parts Stripped . | . . . Power Chain Reactions . | . . . Alert | -11 -10 -9 ------- Run | Yrd Mat Mat Peak Influence 306 | . 87 306 Initial 36 | . . 36 Average 89 | . 29 128 Maximum Alert Level 1 | . . 1 Low Security (%) 93 | 100 100 89 Level 1 6 | . . 10 Level 2 . | . . . Level 3 . | . . . Level 4 . | . . . Level 5 . | . . . High Security . | . . . Max Security . | . . . Squads Dispatched 3 | . 1 2 Investigation 1 | . . 1 Extermination . | . . . Reinforcement 2 | . 1 1 Assault . | . . . Garrison . | . . . Intercept . | . . . Searches Triggered . | . . . Construction Impeded . | . . . Haulers Reinforced . | . . . Active Scanning Responses . | . . . Cargo Convoy Interrupts . | . . . Stealth | -11 -10 -9 --------- Run | Yrd Mat Mat Distress Signals 1 | . 1 . Communications Jammed . | . . . Distress Signals . | . . . Times Spotted 24 | . 5 19 Peak Tracking Total 8 | . 2 8 Tactical Retreats 4 | . . 4 Traps | -11 -10 -9 ------- Run | Yrd Mat Mat Traps Triggered 1 | . . 1 Indirectly . | . . . Trap Hack Attempts . | . . . Triggered . | . . . Disarmed . | . . . Reprogrammed . | . . . Reused . | . . . Traps Extracted . | . . . Installed . | . . . Triggered . | . . . Machines | -11 -10 -9 ---------- Run | Yrd Mat Mat Machines Disabled 1 | . 1 . Max in Single Turn 1 | . 1 . Machines Repaired . | . . . Machines Dismantled . | . . . Machines Sabotaged . | . . . Overloaded Fab Kills . | . . . Hacking | -11 -10 -9 --------- Run | Yrd Mat Mat Machines Accessed . | . . . Terminals . | . . . Fabricators . | . . . Repair Stations . | . . . Recycling Units . | . . . Scanalyzers . | . . . Garrison Access . | . . . Total Hacks . | . . . Successful . | . . . Failed . | . . . Catastrophic . | . . . Database Lockouts . | . . . Manual . | . . . Terminals . | . . . Fabricators . | . . . Repair Stations . | . . . Recycling Units . | . . . Scanalyzers . | . . . Garrison Access . | . . . Terminal Hacks . | . . . Fabricator Hacks . | . . . Repair Station Hacks . | . . . Recycling Unit Hacks . | . . . Scanalyzer . | . . . Garrison Access Hacks . | . . . Unauthorized Hacks . | . . . Terminals . | . . . Fabricators . | . . . Repair Stations . | . . . Recycling Units . | . . . Scanalyzers . | . . . Garrison Access . | . . . Data Cores Recovered . | . . . Used . | . . . Hacking Detections . | . . . Full Trace Events . | . . . Feedback Events . | . . . Feedback Blocked . | . . . Robot Schematics Acquired . | . . . Robots Built . | . . . Authchips . | . . . Time . | . . . Total Robot Build Rating . | . . . Part Schematics Acquired . | . . . Parts Built . | . . . Authchips . | . . . Time . | . . . Total Part Build Rating . | . . . Parts Repaired . | . . . Time . | . . . Parts Recycled . | . . . Recycled Matter . | . . . Retrieved Matter . | . . . Retrieved Components . | . . . Parts Scanalyzed . | . . . Part Schematics Acquired . | . . . Parts Damaged . | . . . Bothacking | -11 -10 -9 ------------ Run | Yrd Mat Mat Used RIF Installer . | . . . Robots Hacked . | . . . Non-combat . | . . . Combat . | . . . Robot Hacks Applied . | . . . Relay Couplers Released . | . . . Fabnet Peak Effective % . | . . . Robots Rewired . | . . . Allies Hacked . | . . . Hacks Repelled . | . . . Allies | -11 -10 -9 -------- Run | Yrd Mat Mat Total Allies . | . . . Largest Group . | . . . Highest-Rated Group . | . . . Highest-Rated Ally . | . . . Total Orders . | . . . Ally Attacks . | . . . Total Damage . | . . . Kills . | . . . Allies Corrupted . | . . . Allies Melted . | . . . Intel | -11 -10 -9 ------- Run | Yrd Mat Mat Robot Analysis Total . | . . . Derelict Logs Recovered . | . . . Drone Launches . | . . . Drone Recoveries . | . . . Exploration | -11 -10 -9 ------------- Run | Yrd Mat Mat Turns Passed 631 | 51 184 396 Spaces Moved 373 | 38 115 220 Core 11 | 10 . 1 Treads . | . . . Legs 217 | 28 79 110 Wheels 145 | . 36 109 Hover . | . . . Flight . | . . . Fastest Speed 50 | 50 100 100 Average Speed 128 | 101 118 138 Slowest Speed 400 | 120 400 400 Overloaded Moves . | . . . Propulsion Burnouts . | . . . Robots Hopped . | . . . Cave-ins Triggered . | . . . Exploration Rate (%) 21 | 4 27 32 Regions Visited 2 Branch Regions . Pre-discovered Areas . | . . . Known Exits Taken . | . . . Unknown Exits Taken 2 | 1 1 . Scrap Searched . | . . . Spaces Dug . | . . . Terrain Destroyed 4 | . 4 . Melee . | . . . Projectile . | . . . AOE 4 | . 4 . Terrain Rammed . | . . . Walls Destroyed . | . . . Machines Disabled . | . . . Actions | -11 -10 -9 --------- Run | Yrd Mat Mat Total 476 | 49 154 273 Wait 20 | . 20 . Move 371 | 37 114 220 Hop . | . . . Pick Up 19 | 6 6 7 Fast Attach 3 | 3 . . Attach 9 | 3 2 4 Detach . | . . . Swap 10 | . 5 5 Drop 9 | . 1 8 Fire 18 | . 6 12 Melee 17 | . . 17 Ram . | . . . Kick . | . . . Crush . | . . . Escape Stasis . | . . . Rewire . | . . . Trap . | . . . Miscellaneous . | . . . Route ------- -11/Scrapyard -10/Materials -9/Materials History --------- Turn | Location | Event 17 | -11/Scrapyard | Discovered new exit (range 15) 52 | -11/Scrapyard | Entered Materials 230 | -10/Materials | Discovered new exit (range 5) 236 | -10/Materials | Entered another Materials area 236 | -9/Materials | Evolved 2 slots: Power x1, Utility x1 312 | -9/Materials | Build established: Mutant 394 | -9/Materials | Core integrity fell below 50% 576 | -9/Materials | Core integrity fell below 20% 632 | -9/Materials | Destroyed by Y-45 Defender with Beam Rifle Last Messages --------------- 00504_ Sneak attack on K-01 Serf. 00504_ Destroyed Wheel. 00504_ K-01 Serf system corrupted by crushing effect. 00504_ Wheel fried. 00504_ K-01 Serf destroyed. 00570_ K-01 Serf cleans the Terminal. 00573_ Imp. Ion Engine destroyed. 00576_ K-01 Serf cleans the Terminal. 00578_ ALERT: Hostiles spotted, dispatching reinforcements to Terminal M009. 00595_ Y-45 Defender suffers critical hit (Smash). 00595_ Destroyed Heat Sink. 00595_ Y-45 Defender system corrupted by crushing effect. 00595_ Y-45 Defender IFF system glitched. 00596_ Y-45 Defender system terminally corrupted. 00623_ Imp. Aluminum Leg destroyed. Map ----- +----------------------------------------------------+ | ??????????????????????????# #???????? | | ??????????????????????????# ^^ ! +???????? | | ??????????????????????????# #???????? | | ??????????????????????????# "" ### ##???????? | | ?????????????????????###### "T #?# #????????? | | ?????????????????????# "" #?# #????????? | | ????????????########## ###+######???#+ | | ????????????# """ # # #???# | | ????????????# """"" # ####### # """ #???# | | ????????????# """"" # #?????# # """ #???# | | ????????????# """"" # #?????+ # """ #???# | | ????????????# """ / #?????# / #???# | | ????????????# # #?????# # """ #???# | | ????????????# #####?????# # """ ##### | | ????????????# #?????????# # """ / | | ????????????# #?????????# # #####+ | | ????????????#+########?????????# ##########?# | | ????????????# #????????????????# #??????????# | | ??????????### ###????#######???? ##?????????# | | ??????????# [ #????# ##### !????????# | | ??????????# =%[ ######Y !????????#### | | ??????????# x s !!??????????? | | ??????????# ! ######Y x !???????????? | | ??????????# #????# g ###### #??????????????? | | ??????????###+####?#####;#####???????????????????? | | ??????????# #?# @ #???????????????????? | | ??????????# #?# #???????????????????? | | ??????????# #?# """ """ #???????????????????? | | ??????????# #?# """ """ #???????????????????? | | ??????????# #?# """ """ #???????????????????? | | ??????????# #?# #???????????????????? | | ??????????########?# #???????????????????? | | ???????????????????? +?????x?????????????? | | ???????????????????#########?????????????????????? | | ?????????????????????????????????????????????????? | | ?????????????????????????????????????????????????? | | ?????????????????????????????????????????????????? | | ?????????????????????????????????????????????????? | | ?????????????????????????????????????????????????? | | ?????????????????????????????????????????????????? | | | | | | | | | | | | | | | | | | | | | +----------------------------------------------------+ Best States ------------- Heat Dissipation 28 Energy Generation 19 Energy Capacity 430 Matter Stores 300 Matter Capacity 300 Sight Range 16 Robot Scan Range 14 Terrain Scan Density 10 Evasion (%) 55 Item Schematics ----------------- None Robot Schematics ------------------ None Fabricated ------------ Nothing Alien Tech Used ----------------- None Achievements -------------- None Challenges ------------ None Game ------ Seed AngularStorageExtractor Manual? 0 Play Time 00:11:43 Cumulative 12.1 hours Start 2024.06.28 @ 20:37:50 End 2024.06.28 @ 20:45:58 Sessions 1 Manual Loads 0 Difficulty Rogue Special Mode None Game No. 55 Rogue 55 Adventurer 0 Explorer 0 Win Type - Total 0 Types 0/0/0/0/0/0/0/0/0 Lore% 3 Gallery% 17 Achievement% 12 Wizard Run 0 Options --------- Layout 1 ASCII 0 Keyboard 0 Movement Mouse Keybinds 0 Fullscreen 1 Font 24/Smallcaps Map View 50x35 Zoom Use 0% Tactical HUD 1 Map Filters NONE Filters NONE Steam 1 RUN: 52cad356-9a30-4188-91e5-f463a01fa95f